{"text_format":"1","workbook":"xlsx","n_sheets":2,"sheets":["Sheet1","Sheet2"],"not_rendered":{"charts":0,"images":1,"macros":1,"external_links":0,"defined_names":0,"comments":0,"pivot_tables":0},"unopened":[],"bounds":{"document_bytes":16777216,"sheet_cells":100000,"rows_first":2000,"rows_last":500,"rows_between":2000,"halvings":0,"cell_chars":16384,"cell_head_chars":4096},"cells_cut":0,"cells_raw":0,"read":"whole","date_system":"1900"}

{"sheet":"Sheet1","index":0,"n_rows":22,"n_cols":7,"rows_kept":22,"cut":false,"hidden":false,"merged":[]}
["الكود","الاسم","رقم الهاتف","العنوان","الدرجة","المهنة","الراتب"]
[{"$f":"IF(ISBLANK(B2),\"\",ROW()-1)","v":1},"وليد صالح",1145456070,"الرياض","الأولى","محاسب",7300]
[{"$f":"IF(ISBLANK(B3),\"\",ROW()-1)","v":2},"سلمى عبد الكريم",1045456071,"القاهرة","الثانية","محامی",8600]
[3,"حسن مصطفى",1245456072,"طرابلس","الأولى","اداري",5700]
[4,"عصام يوسف",1545456073,"دبي","الثالثة","مدير عام",8500]
[5,"خالد عمر",1114315018,"طرابلس","الثانية","مدير قسم",7700]
[6,"يوسف عمر",1113337788,"الرياض","الثالثة","مدير قسم",8800]
[7,"محمد سید",1224449685,"القاهرة","الأولى","محاسب",8100]
[8,"كمال بهاء الدين",1556669080,"الرياض","الثانية","محامی",9200]
[9,"كمال زيد",1188888070,"دبي","الأولى","إدارى",6500]
[10,"عبدالله محمود",1155661020,"طرابلس","الثالثة","محامی",5600]
[11,"زياد عبد العزيز",1156661021,"طرابلس","الثانية","محاسب",8700]
[12,"سعد سعيد",1165551022,"القاهرة","الثالثة","امين مخزن",6500]
[13,"عمر أحمد",1178881023,"القاهرة","الأولى","حارس امن",5600]
[14,"علاء كمال",1191011024,"القاهرة","الثانية","مراسل",8700]
[15,"حمزة كمال",1065551022,"القاهرة","الأولى","إداري",7300]
[16,"منصور عمر",1110111025,"القاهرة","الثالثة","مدير عام",8600]
[17,"على عبد الله",1111222026,"القاهرة","الثانية","مدير الموارد",5700]
[18,"سيد عبد الله",1112333027,"الرياض","الثالثة","محاسب",8500]
[19,"عبدالعزيز منصور",1114555028,"القاهرة","الأولى","محامی",7700]
[20,"سعد عبد العزيز",1055661020,"طرابلس","الثانية","اداري",8800]
[21,"خالد منصور",1158489756,"الإسكندرية","الخامسة","مدير قسم",10000]

{"sheet":"Sheet2","index":1,"n_rows":2,"n_cols":7,"rows_kept":2,"cut":false,"hidden":false,"merged":[]}
["الكود","الاسم","رقم الجوال","العنوان","الدرجة","المهنة","الراتب"]
[{"$f":"IF(ISBLANK(B2),\"\",ROW()-1)","v":""}]